[Event "25th Abu Dhabi Master 2018"]
[Site "Abu Dhabi"]
[Date "2018.08.08"]
[Round "2"]
[White "Samant, Aditya S"]
[Black "Aliyev, Ravan"]
[Result "1/2-1/2"]
[ECO "C95"]
[WhiteElo "2217"]
[BlackElo "2346"]
[Annotator "NA"]
[PlyCount "154"]
[EventDate "2018.08.05"]
[EventType "swiss"]
[EventCountry "UAE"]
[SourceTitle "playchess.com"]
[Source "ChessBase"]
[SourceQuality "1"]
[TimeControl "5400+30"]

1. e4 {[%emt 0:00:00]} e5 {[%emt 0:00:00]} 2. Nf3 {[%emt 0:00:00]} Nc6 {[%emt 0:00:00]} 3. Bb5 {[%emt 0:00:04]} a6 {[%emt 0:00:00]} 4. Ba4 {[%emt 0:00:10]} Nf6 {[%emt 0:00:00]} 5. O-O {[%emt 0:00:08]} Be7 {[%emt 0:00:07]} 6. Re1 {[%emt 0:00:20]} b5 {[%emt 0:00:06]} 7. Bb3 {[%emt 0:00:05]} d6 {[%emt 0:00:08]} 8. c3 {[%emt 0:00:06]} O-O {[%emt 0:00:06]} 9. h3 {[%emt 0:00:06]} Nb8 {[%emt 0:00:07]} 10. d4 {[%emt 0:00:28]} Nbd7 {[%emt 0:00:07]} 11. Nbd2 {[%emt 0:00:15]} Bb7 {[%emt 0:00:11]} 12. Bc2 {[%emt 0:00:13]} Re8 {[%emt 0:00:14]} 13. Nf1 {[%emt 0:02:55]} Bf8 {[%emt 0:00:25]} 14. Ng3 {[%emt 0:00:21]} g6 {[%emt 0:00:57]} 15. a4 {[%emt 0:01:44]} Bg7 {[%emt 0:00:40]} 16. b3 {[%emt 0:08:56]} d5 {[%emt 0:02:18]} 17. dxe5 {[%emt 0:13:45]} Nxe4 {[%emt 0:02:50]} 18. Nxe4 {[%emt 0:00:20]} dxe4 {[%emt 0:00:16]} 19. Bg5 {[%emt 0:00:25]} f6 {[%emt 0:17:09]} 20. exf6 {[%emt 0:07:50]} Nxf6 {[%emt 0:00:30]} 21. Nd2 {[%emt 0:09:27]} e3 {[%emt 0:24:38]} 22. Bxe3 {[%emt 0:02:33]} Nd5 {[%emt 0:00:45]} 23. Ne4 {[%emt 0:06:11]} Nxc3 {[%emt 0:02:48]} 24. Qxd8 {[%emt 0:00:58]} Rexd8 {[%emt 0:04:29]} 25. Nc5 {[%emt 0:03:39]} Bd5 {[%emt 0:00:15]} 26. Rac1 {[%emt 0:05:11]} Re8 {[%emt 0:02:52]} 27. Bd3 {[%emt 0:03:41]} Na2 {[%emt 0:08:55]} 28. Rcd1 {[%emt 0:01:28]} Nc3 {[%emt 0:07:04]} 29. Rc1 {[%emt 0:04:00]} Na2 {[%emt 0:15:56]} 30. Rcd1 {[%emt 0:00:36]} bxa4 {[%emt 0:00:31]} 31. bxa4 {[%emt 0:01:34]} Nc3 {[%emt 0:03:02]} 32. Rc1 {[%emt 0:02:36]} a5 {[%emt 0:00:22]} 33. Na6 {[%emt 0:08:45]} Rac8 {[%emt 0:05:33]} 34. Bd2 {[%emt 0:02:20]} Rxe1+ {[%emt 0:00:07]} 35. Bxe1 {[%emt 0:00:17]} Nxa4 {[%emt 0:01:29]} 36. Rxc7 {[%emt 0:02:44]} Rxc7 {[%emt 0:01:38]} 37. Nxc7 {[%emt 0:00:38]} Nb2 {[%emt 0:00:42]} 38. Nxd5 {[%emt 0:00:58]} Nxd3 {[%emt 0:00:01]} 39. Bxa5 {[%emt 0:00:09]} Bd4 {[%emt 0:00:04]} 40. Bb6 {[%emt 0:00:07]} Bxb6 {[%emt 0:00:16]} 41. Nxb6 {[%emt 0:00:12]} Kf7 {[%emt 0:00:15]} 42. g3 {[%emt 0:01:16]} Ke6 {[%emt 0:00:29]} 43. Nc4 {[%emt 0:00:45]} Kd5 {[%emt 0:00:57]} 44. Nd2 {[%emt 0:00:26]} Ke5 {[%emt 0:00:25]} 45. Kf1 {[%emt 0:00:40]} Kf5 {[%emt 0:00:59]} 46. Ke2 {[%emt 0:00:06]} Nc5 {[%emt 0:00:21]} 47. Ke3 {[%emt 0:00:27]} h5 {[%emt 0:01:06]} 48. Nf3 {[%emt 0:00:52]} Kf6 {[%emt 0:00:51]} 49. Ne1 {[%emt 0:01:07]} Kf5 {[%emt 0:00:24]} 50. Nd3 {[%emt 0:00:18]} Ne6 {[%emt 0:00:24]} 51. Nb4 {[%emt 0:00:57]} Ng5 {[%emt 0:00:45]} 52. h4 {[%emt 0:00:10]} Ne6 {[%emt 0:00:19]} 53. Nc6 {[%emt 0:00:06]} Nc5 {[%emt 0:00:38]} 54. f3 {[%emt 0:00:28]} Kf6 {[%emt 0:00:36]} 55. Nb4 {[%emt 0:01:21]} Kf5 {[%emt 0:00:25]} 56. Nd5 {[%emt 0:00:10]} Ke5 {[%emt 0:00:41]} 57. Nc3 {[%emt 0:00:06]} Kf5 {[%emt 0:00:22]} 58. Ne4 {[%emt 0:00:46]} Ne6 {[%emt 0:00:10]} 59. Nf2 {[%emt 0:00:05]} Nc5 {[%emt 0:00:26]} 60. g4+ {[%emt 0:00:23]} hxg4 {[%emt 0:00:07]} 61. fxg4+ {[%emt 0:00:04]} Ke5 {[%emt 0:00:38]} 62. Nh3 {[%emt 0:00:24]} Ne6 {[%emt 0:00:11]} 63. Ng1 {[%emt 0:00:34]} Nc5 {[%emt 0:00:30]} 64. Nf3+ {[%emt 0:00:05]} Kf6 {[%emt 0:00:05]} 65. Nd2 {[%emt 0:00:54]} Ke5 {[%emt 0:00:21]} 66. Nc4+ {[%emt 0:00:10]} Kf6 {[%emt 0:00:21]} 67. Kf3 {[%emt 0:00:13]} Nd3 {[%emt 0:00:57]} 68. g5+ {[%emt 0:00:08]} Ke6 {[%emt 0:00:31]} 69. Kg4 {[%emt 0:00:19]} Nf2+ {[%emt 0:00:20]} 70. Kg3 {[%emt 0:00:06]} Nd3 {[%emt 0:00:12]} 71. Ne3 {[%emt 0:00:36]} Ne5 {[%emt 0:01:33]} 72. Kf4 {[%emt 0:00:20]} Nd3+ {[%emt 0:00:09]} 73. Ke4 {[%emt 0:00:05]} Nc5+ {[%emt 0:00:14]} 74. Kd4 {[%emt 0:00:14]} Nb3+ {[%emt 0:00:27]} 75. Kc3 {[%emt 0:00:19]} Nc5 {[%emt 0:00:05]} 76. Kc4 {[%emt 0:00:03]} Ne4 {[%emt 0:00:23]} 77. Kd4 {[%emt 0:00:19]} Nd2 {[%emt 0:00:32]} 1/2-1/2

[Event "25th Abu Dhabi Master 2018"]
[Site "Abu Dhabi"]
[Date "2018.08.08"]
[Round "2"]
[White "Sahil, Tickoo"]
[Black "Padmini, Rout"]
[Result "0-1"]
[ECO "D35"]
[WhiteElo "2192"]
[BlackElo "2338"]
[Annotator "NA"]
[PlyCount "102"]
[EventDate "2018.08.05"]
[EventType "swiss"]
[EventCountry "UAE"]
[SourceTitle "playchess.com"]
[Source "ChessBase"]
[SourceQuality "1"]
[TimeControl "5400+30"]

1. d4 {[%emt 0:00:00]} Nf6 {[%emt 0:00:45]} 2. c4 {[%emt 0:00:18]} e6 {[%emt 0:00:24]} 3. Nc3 {[%emt 0:00:21]} d5 {[%emt 0:00:23]} 4. cxd5 {[%emt 0:00:10]} Nxd5 {[%emt 0:00:59]} 5. Bd2 {[%emt 0:14:33]} c5 {[%emt 0:04:48]} 6. Nxd5 {[%emt 0:04:28]} Qxd5 {[%emt 0:02:17]} 7. dxc5 {[%emt 0:00:46]} Bxc5 {[%emt 0:00:46]} 8. Bc3 {[%emt 0:00:22]} Qxd1+ {[%emt 0:00:41]} 9. Rxd1 {[%emt 0:00:06]} f6 {[%emt 0:00:49]} 10. e3 {[%emt 0:03:49]} Nc6 {[%emt 0:01:44]} 11. Nf3 {[%emt 0:04:14]} e5 {[%emt 0:03:07]} 12. Bc4 {[%emt 0:16:13]} Ke7 {[%emt 0:02:13]} 13. h3 {[%emt 0:01:30]} Be6 {[%emt 0:06:51]} 14. Bxe6 {[%emt 0:05:03]} Kxe6 {[%emt 0:00:03]} 15. e4 {[%emt 0:00:25]} Rhc8 {[%emt 0:06:28]} 16. Ke2 {[%emt 0:03:31]} b5 {[%emt 0:02:14]} 17. Rd5 {[%emt 0:14:05]} Ne7 {[%emt 0:01:26]} 18. Rdd1 {[%emt 0:01:38]} a5 {[%emt 0:28:48]} 19. Bd2 {[%emt 0:19:25]} h6 {[%emt 0:01:07]} 20. Rc1 {[%emt 0:03:03]} f5 {[%emt 0:02:19]} 21. Be3 {[%emt 0:03:16]} Bd6 {[%emt 0:04:23]} 22. exf5+ {[%emt 0:00:19]} Nxf5 {[%emt 0:00:14]} 23. g4 {[%emt 0:02:03]} Ne7 {[%emt 0:00:53]} 24. Rxc8 {[%emt 0:00:27]} Rxc8 {[%emt 0:00:27]} 25. Rc1 {[%emt 0:00:03]} Rxc1 {[%emt 0:01:39]} 26. Bxc1 {[%emt 0:00:01]} Kd5 {[%emt 0:00:14]} 27. Be3 {[%emt 0:01:55]} a4 {[%emt 0:03:15]} 28. Nd2 {[%emt 0:00:22]} Bb4 {[%emt 0:00:55]} 29. f3 {[%emt 0:00:41]} Bxd2 {[%emt 0:03:39]} 30. Bxd2 {[%emt 0:00:02]} Nc6 {[%emt 0:01:31]} 31. Ke3 {[%emt 0:01:19]} g5 {[%emt 0:01:10]} 32. h4 {[%emt 0:00:45]} gxh4 {[%emt 0:03:25]} 33. Kf2 {[%emt 0:00:01]} e4 {[%emt 0:05:40]} 34. f4 {[%emt 0:01:08]} Kc4 {[%emt 0:02:31]} 35. Be1 {[%emt 0:00:33]} Kd3 {[%emt 0:05:51]} 36. Kg2 {[%emt 0:00:01]} Ke3 {[%emt 0:02:26]} 37. f5 {[%emt 0:00:54]} Ne5 {[%emt 0:00:55]} 38. Bc3 {[%emt 0:00:38]} Nxg4 {[%emt 0:00:43]} 39. f6 {[%emt 0:00:26]} Nxf6 {[%emt 0:00:25]} 40. Bxf6 {[%emt 0:00:02]} Kd2 {[%emt 0:00:04]} 41. Bg7 {[%emt 0:00:52]} h5 {[%emt 0:00:53]} 42. Bh6+ {[%emt 0:00:18]} Kc2 {[%emt 0:00:19]} 43. b3 {[%emt 0:00:42]} axb3 {[%emt 0:00:26]} 44. axb3 {[%emt 0:00:01]} Kxb3 {[%emt 0:00:09]} 45. Kf2 {[%emt 0:00:57]} Kc4 {[%emt 0:00:15]} 46. Ke3 {[%emt 0:00:40]} Kd5 {[%emt 0:00:04]} 47. Bg5 {[%emt 0:00:24]} h3 {[%emt 0:00:07]} 48. Bf4 {[%emt 0:00:01]} b4 {[%emt 0:00:07]} 49. Kd2 {[%emt 0:00:03]} Kc4 {[%emt 0:00:24]} 50. Bh2 {[%emt 0:00:49]} b3 {[%emt 0:00:06]} 51. Bf4 {[%emt 0:00:22]} e3+ {[%emt 0:00:14]} 0-1

[Event "25th Abu Dhabi Master 2018"]
[Site "Abu Dhabi"]
[Date "2018.08.08"]
[Round "2"]
[White "Senthil, Maran K"]
[Black "Aronyak, Ghosh"]
[Result "1/2-1/2"]
[ECO "D27"]
[WhiteElo "2167"]
[BlackElo "2318"]
[Annotator "NA"]
[PlyCount "114"]
[EventDate "2018.08.05"]
[EventType "swiss"]
[EventCountry "UAE"]
[SourceTitle "playchess.com"]
[Source "ChessBase"]
[SourceQuality "1"]
[TimeControl "5400+30"]

1. d4 {[%emt 0:04:32]} d5 {[%emt 0:00:00]} 2. Nf3 {[%emt 0:00:16]} Nf6 {[%emt 0:00:14]} 3. c4 {[%emt 0:00:08]} dxc4 {[%emt 0:00:07]} 4. e3 {[%emt 0:03:27]} e6 {[%emt 0:00:09]} 5. Bxc4 {[%emt 0:00:08]} c5 {[%emt 0:00:05]} 6. O-O {[%emt 0:00:05]} a6 {[%emt 0:00:05]} 7. dxc5 {[%emt 0:01:24]} Bxc5 {[%emt 0:01:23]} 8. Qxd8+ {[%emt 0:06:05]} Kxd8 {[%emt 0:00:02]} 9. Nbd2 {[%emt 0:03:10]} Ke7 {[%emt 0:03:08]} 10. Nb3 {[%emt 0:04:37]} Bd6 {[%emt 0:00:08]} 11. Bd2 {[%emt 0:01:04]} b6 {[%emt 0:02:02]} 12. Rac1 {[%emt 0:04:55]} Bb7 {[%emt 0:02:23]} 13. Be2 {[%emt 0:05:41]} Nbd7 {[%emt 0:13:45]} 14. Nfd4 {[%emt 0:06:13]} Rac8 {[%emt 0:01:44]} 15. f3 {[%emt 0:00:29]} g6 {[%emt 0:11:58]} 16. e4 {[%emt 0:05:10]} e5 {[%emt 0:00:43]} 17. Nc2 {[%emt 0:00:17]} Nc5 {[%emt 0:00:02]} 18. Ne3 {[%emt 0:07:23]} Nxb3 {[%emt 0:00:55]} 19. axb3 {[%emt 0:00:01]} b5 {[%emt 0:00:34]} 20. b4 {[%emt 0:07:20]} Rxc1 {[%emt 0:01:03]} 21. Rxc1 {[%emt 0:00:14]} Rc8 {[%emt 0:00:33]} 22. Rxc8 {[%emt 0:04:50]} Bxc8 {[%emt 0:00:29]} 23. Bc3 {[%emt 0:04:11]} Be6 {[%emt 0:00:47]} 24. g3 {[%emt 0:08:38]} Nd7 {[%emt 0:01:08]} 25. Kf2 {[%emt 0:02:07]} Nb6 {[%emt 0:01:49]} 26. Nc2 {[%emt 0:01:39]} Na4 {[%emt 0:05:00]} 27. Ne1 {[%emt 0:00:48]} Bc7 {[%emt 0:01:22]} 28. Nd3 {[%emt 0:01:59]} Bb6+ {[%emt 0:00:21]} 29. Ke1 {[%emt 0:00:39]} Nxc3 {[%emt 0:00:17]} 30. bxc3 {[%emt 0:00:01]} Kd6 {[%emt 0:00:08]} 31. Bf1 {[%emt 0:04:56]} Bg1 {[%emt 0:01:04]} 32. h3 {[%emt 0:00:12]} Be3 {[%emt 0:01:14]} 33. Ke2 {[%emt 0:01:09]} Bb6 {[%emt 0:00:02]} 34. Kd2 {[%emt 0:00:43]} Bc4 {[%emt 0:01:40]} 35. Be2 {[%emt 0:00:22]} f5 {[%emt 0:03:24]} 36. Nb2 {[%emt 0:03:32]} Be6 {[%emt 0:00:45]} 37. g4 {[%emt 0:00:06]} fxg4 {[%emt 0:03:05]} 38. fxg4 {[%emt 0:00:10]} Ke7 {[%emt 0:01:01]} 39. c4 {[%emt 0:04:38]} Bd4 {[%emt 0:00:17]} 40. Kc2 {[%emt 0:00:01]} Bxb2 {[%emt 0:02:41]} 41. Kxb2 {[%emt 0:00:01]} bxc4 {[%emt 0:00:03]} 42. h4 {[%emt 0:03:34]} g5 {[%emt 0:00:50]} 43. hxg5 {[%emt 0:00:05]} Kf7 {[%emt 0:00:05]} 44. Kc3 {[%emt 0:00:06]} Kg6 {[%emt 0:00:35]} 45. Bxc4 {[%emt 0:00:06]} Bc8 {[%emt 0:00:33]} 46. Bg8 {[%emt 0:00:55]} Bb7 {[%emt 0:01:00]} 47. Bd5 {[%emt 0:02:07]} Bc8 {[%emt 0:00:15]} 48. Bg8 {[%emt 0:00:10]} Bxg4 {[%emt 0:00:50]} 49. Kc4 {[%emt 0:00:19]} Bd1 {[%emt 0:02:24]} 50. Kc5 {[%emt 0:01:13]} Kxg5 {[%emt 0:01:34]} 51. Bxh7 {[%emt 0:00:01]} Kf4 {[%emt 0:00:10]} 52. Kb6 {[%emt 0:00:51]} Be2 {[%emt 0:00:06]} 53. Bf5 {[%emt 0:00:03]} Bd3 {[%emt 0:00:16]} 54. Bc8 {[%emt 0:00:07]} Kxe4 {[%emt 0:00:58]} 55. Bxa6 {[%emt 0:00:05]} Kd4 {[%emt 0:00:06]} 56. Bxd3 {[%emt 0:00:51]} Kxd3 {[%emt 0:00:02]} 57. b5 {[%emt 0:00:01]} Ke4 1/2-1/2

[Event "25th Abu Dhabi Master 2018"]
[Site "Abu Dhabi"]
[Date "2018.08.08"]
[Round "2"]
[White "Esenbek Uulu, Ilimbek"]
[Black "Sammed Jaykumar, Shete"]
[Result "0-1"]
[ECO "C51"]
[WhiteElo "2159"]
[BlackElo "2314"]
[Annotator "NA"]
[PlyCount "93"]
[EventDate "2018.08.05"]
[EventType "swiss"]
[EventCountry "UAE"]
[SourceTitle "playchess.com"]
[Source "ChessBase"]
[SourceQuality "1"]
[TimeControl "5400+30"]

1. e4 {[%emt 0:04:41]} e5 {[%emt 0:00:00]} 2. Nf3 {[%emt 0:00:04]} Nc6 {[%emt 0:00:00]} 3. Bc4 {[%emt 0:00:07]} Bc5 {[%emt 0:00:00]} 4. b4 {[%emt 0:00:23]} Bxb4 {[%emt 0:00:00]} 5. c3 {[%emt 0:00:05]} Be7 {[%emt 0:00:00]} 6. d4 {[%emt 0:00:05]} Na5 {[%emt 0:02:59]} 7. Be2 {[%emt 0:00:07]} d6 {[%emt 0:04:18]} 8. Qa4+ {[%emt 0:04:47]} c6 {[%emt 0:00:11]} 9. dxe5 {[%emt 0:00:15]} dxe5 {[%emt 0:00:50]} 10. Nxe5 {[%emt 0:00:21]} Nf6 {[%emt 0:02:18]} 11. O-O {[%emt 0:00:45]} O-O {[%emt 0:02:00]} 12. Rd1 {[%emt 0:03:18]} Qc7 {[%emt 0:10:48]} 13. Bf4 {[%emt 0:02:19]} b5 {[%emt 0:00:59]} 14. Qc2 {[%emt 0:00:17]} Qb6 {[%emt 0:00:31]} 15. Nd2 {[%emt 0:00:52]} Re8 {[%emt 0:09:27]} 16. Rab1 {[%emt 0:06:16]} Bc5 {[%emt 0:06:01]} 17. Bg3 {[%emt 0:09:29]} Be6 {[%emt 0:02:24]} 18. Nd3 {[%emt 0:05:11]} Nc4 {[%emt 0:08:06]} 19. Nxc5 {[%emt 0:17:20]} Na3 {[%emt 0:04:00]} 20. Qb2 {[%emt 0:01:09]} Nxb1 {[%emt 0:11:00]} 21. Ndb3 {[%emt 0:05:49]} Bxb3 {[%emt 0:02:32]} 22. Nxb3 {[%emt 0:00:07]} Nxc3 {[%emt 0:00:22]} 23. Qxc3 {[%emt 0:00:08]} Nxe4 {[%emt 0:00:06]} 24. Qf3 {[%emt 0:00:41]} Nxg3 {[%emt 0:04:47]} 25. hxg3 {[%emt 0:01:50]} Rad8 {[%emt 0:00:23]} 26. Rxd8 {[%emt 0:02:20]} Rxd8 {[%emt 0:01:27]} 27. Qc3 {[%emt 0:01:05]} Re8 {[%emt 0:08:46]} 28. Bf3 {[%emt 0:00:32]} b4 {[%emt 0:11:30]} 29. Qc1 {[%emt 0:03:08]} c5 {[%emt 0:04:46]} 30. Bd5 {[%emt 0:02:48]} Qd6 {[%emt 0:02:32]} 31. Bc4 {[%emt 0:01:25]} Re5 {[%emt 0:00:56]} 32. f4 {[%emt 0:01:24]} Re7 {[%emt 0:00:43]} 33. Kf2 {[%emt 0:00:45]} a5 {[%emt 0:00:43]} 34. a4 {[%emt 0:03:03]} bxa3 {[%emt 0:01:00]} 35. Qxa3 {[%emt 0:00:25]} Re4 {[%emt 0:00:25]} 36. Qa4 {[%emt 0:23:58]} Kf8 {[%emt 0:00:25]} 37. Qb5 {[%emt 0:00:14]} g5 {[%emt 0:00:32]} 38. Bd3 {[%emt 0:00:45]} Rb4 {[%emt 0:00:29]} 39. Qxc5 {[%emt 0:00:10]} Qxc5+ {[%emt 0:00:06]} 40. Nxc5 {[%emt 0:00:03]} gxf4 {[%emt 0:00:12]} 41. gxf4 {[%emt 0:00:15]} a4 {[%emt 0:00:10]} 42. Be4 {[%emt 0:01:38]} a3 {[%emt 0:00:30]} 43. Bd5 {[%emt 0:00:32]} Rb5 {[%emt 0:00:20]} 44. Nd7+ {[%emt 0:00:16]} Ke7 {[%emt 0:00:05]} 45. Bc6 Rb2+ {[%emt 0:00:07]} 46. Ke3 {[%emt 0:00:52]} a2 {[%emt 0:00:05]} 47. Kd4 0-1

[Event "25th Abu Dhabi Master 2018"]
[Site "Abu Dhabi"]
[Date "2018.08.08"]
[Round "2"]
[White "Ajay, Karthikeyan"]
[Black "Eric, Jovana"]
[Result "0-1"]
[ECO "A45"]
[WhiteElo "2156"]
[BlackElo "2307"]
[Annotator "NA"]
[PlyCount "98"]
[EventDate "2018.08.05"]
[EventType "swiss"]
[EventCountry "UAE"]
[SourceTitle "playchess.com"]
[Source "ChessBase"]
[SourceQuality "1"]
[TimeControl "5400+30"]

1. d4 Nf6 2. Bf4 g6 3. Nc3 d6 4. e4 Bg7 5. Qd2 O-O 6. O-O-O c6 7. h4 h5 8. Nf3 b5 9. Bd3 b4 10. Ne2 Qa5 11. Kb1 Ng4 12. Nc1 c5 13. Nb3 Qb6 14. dxc5 dxc5 15. Be3 Nd7 16. Bg5 Re8 17. Bc4 Nde5 18. Nxe5 Nxe5 19. Bd5 Bb7 20. Be3 Rac8 21. Bxc5 Qc7 22. Qxb4 Bxd5 23. Rxd5 e6 24. Rd2 a5 25. Qa4 Qb7 26. f4 Ng4 27. e5 Rb8 28. a3 Rec8 29. Qxa5 Qe4 30. Rd4 Qxg2 31. Rhd1 Kh7 32. Rd7 Qf3 33. R1d4 Nh6 34. Qd2 Rxb3 35. cxb3 Rxc5 36. b4 Rc8 37. Qd1 Qc6 38. a4 Nf5 39. b5 Qc5 40. Rd3 Ne3 41. Rxe3 Qxe3 42. Rxf7 Qe4+ 43. Ka2 Rc4 44. Ra7 Qxf4 45. b6 Qxe5 46. Qb3 Rc1 47. Qb4 Qd5+ 48. Qb3 Ra1+ 49. Kxa1 Qxb3 0-1

[Event "25th Abu Dhabi Master 2018"]
[Site "Abu Dhabi"]
[Date "2018.08.08"]
[Round "2"]
[White "Ivana Maria, Furtado"]
[Black "Gomes, Mary Ann"]
[Result "0-1"]
[ECO "A46"]
[WhiteElo "2146"]
[BlackElo "2303"]
[Annotator "NA"]
[PlyCount "72"]
[EventDate "2018.08.05"]
[EventType "swiss"]
[EventCountry "UAE"]
[SourceTitle "playchess.com"]
[Source "ChessBase"]
[SourceQuality "1"]
[TimeControl "5400+30"]

1. d4 {[%emt 0:00:04]} Nf6 {[%emt 0:00:17]} 2. Nf3 {[%emt 0:02:04]} e6 {[%emt 0:00:07]} 3. g3 {[%emt 0:01:55]} b6 {[%emt 0:00:05]} 4. Bg2 {[%emt 0:00:45]} Bb7 {[%emt 0:00:06]} 5. O-O {[%emt 0:00:45]} c5 {[%emt 0:00:19]} 6. c4 {[%emt 0:03:40]} cxd4 {[%emt 0:00:19]} 7. Qxd4 {[%emt 0:01:20]} Nc6 {[%emt 0:01:11]} 8. Qd3 {[%emt 0:10:00]} Rc8 {[%emt 0:01:38]} 9. b3 {[%emt 0:03:25]} b5 {[%emt 0:00:38]} 10. Na3 {[%emt 0:10:23]} Nb4 {[%emt 0:06:29]} 11. Qd1 {[%emt 0:01:10]} bxc4 {[%emt 0:00:14]} 12. Nxc4 {[%emt 0:02:12]} d5 {[%emt 0:00:13]} 13. Nce5 {[%emt 0:08:53]} Ne4 {[%emt 0:00:45]} 14. a3 {[%emt 0:06:04]} Nc6 {[%emt 0:24:41]} 15. Bb2 {[%emt 0:02:21]} Nxe5 {[%emt 0:00:39]} 16. Nxe5 {[%emt 0:00:18]} f6 {[%emt 0:07:56]} 17. Bxe4 {[%emt 0:14:08]} fxe5 {[%emt 0:17:28]} 18. Bd3 {[%emt 0:06:59]} Bd6 {[%emt 0:01:49]} 19. e4 {[%emt 0:01:36]} O-O {[%emt 0:02:10]} 20. exd5 {[%emt 0:01:08]} exd5 {[%emt 0:01:16]} 21. Bxe5 {[%emt 0:03:23]} Bxe5 {[%emt 0:06:38]} 22. Qh5 {[%emt 0:00:05]} Re8 {[%emt 0:07:12]} 23. Bxh7+ {[%emt 0:01:43]} Kf8 {[%emt 0:00:08]} 24. Rae1 {[%emt 0:08:15]} Bc3 {[%emt 0:05:54]} 25. Rd1 {[%emt 0:04:39]} d4 {[%emt 0:09:01]} 26. Bg6 {[%emt 0:00:38]} Qd5 {[%emt 0:00:45]} 27. Qh8+ {[%emt 0:02:14]} Ke7 {[%emt 0:02:40]} 28. Qxg7+ {[%emt 0:00:03]} Kd6 {[%emt 0:00:15]} 29. f3 {[%emt 0:00:47]} d3 {[%emt 0:01:25]} 30. Qh6 {[%emt 0:01:26]} Bd4+ {[%emt 0:00:08]} 31. Kg2 {[%emt 0:01:31]} Re2+ {[%emt 0:00:06]} 32. Kh3 {[%emt 0:00:04]} Qe6+ {[%emt 0:00:13]} 33. g4 {[%emt 0:00:35]} Rh8 {[%emt 0:00:07]} 34. Qxh8 {[%emt 0:00:23]} Bxh8 {[%emt 0:00:07]} 35. Rxd3+ {[%emt 0:00:13]} Ke7 {[%emt 0:00:24]} 36. Rfd1 {[%emt 0:01:04]} Bc6 {[%emt 0:00:38]} 0-1

[Event "25th Abu Dhabi Master 2018"]
[Site "Abu Dhabi"]
[Date "2018.08.08"]
[Round "2"]
[White "Isha, Sharma"]
[Black "Karthik, Kumar Pradeep"]
[Result "0-1"]
[ECO "B40"]
[WhiteElo "2145"]
[BlackElo "2295"]
[Annotator "NA"]
[PlyCount "52"]
[EventDate "2018.08.05"]
[EventType "swiss"]
[EventCountry "UAE"]
[SourceTitle "playchess.com"]
[Source "ChessBase"]
[SourceQuality "1"]
[TimeControl "5400+30"]

1. e4 {[%emt 0:00:00]} c5 {[%emt 0:00:13]} 2. Nf3 {[%emt 0:00:00]} e6 {[%emt 0:00:05]} 3. d3 {[%emt 0:00:00]} Nc6 {[%emt 0:00:22]} 4. g3 {[%emt 0:00:06]} g6 {[%emt 0:00:26]} 5. Bg2 {[%emt 0:00:09]} Bg7 {[%emt 0:00:06]} 6. O-O {[%emt 0:00:06]} Nge7 {[%emt 0:00:13]} 7. Re1 {[%emt 0:00:08]} e5 {[%emt 0:00:52]} 8. Nbd2 {[%emt 0:01:39]} O-O {[%emt 0:00:12]} 9. a4 {[%emt 0:00:19]} d6 {[%emt 0:02:20]} 10. Nc4 {[%emt 0:01:05]} h6 {[%emt 0:02:05]} 11. Be3 {[%emt 0:06:11]} f5 {[%emt 0:07:32]} 12. Qc1 {[%emt 0:06:17]} Kh7 {[%emt 0:11:58]} 13. c3 {[%emt 0:00:44]} f4 {[%emt 0:05:18]} 14. gxf4 {[%emt 0:02:55]} Bg4 {[%emt 0:00:52]} 15. fxe5 {[%emt 0:12:24]} Bxf3 {[%emt 0:00:13]} 16. exd6 {[%emt 0:00:15]} Nc8 {[%emt 0:01:34]} 17. Bf4 {[%emt 0:06:10]} Bxg2 {[%emt 0:01:44]} 18. Kxg2 {[%emt 0:00:05]} Qf6 {[%emt 0:04:34]} 19. Bg3 {[%emt 0:10:26]} Qf3+ {[%emt 0:01:02]} 20. Kg1 {[%emt 0:00:05]} Qxd3 {[%emt 0:00:15]} 21. Na3 {[%emt 0:00:45]} Ne5 {[%emt 0:02:16]} 22. Rd1 {[%emt 0:14:09]} Nf3+ {[%emt 0:01:08]} 23. Kg2 {[%emt 0:00:08]} Nh4+ {[%emt 0:03:47]} 24. Bxh4 {[%emt 0:03:16]} Qxe4+ {[%emt 0:00:07]} 25. Kh3 {[%emt 0:00:06]} Qf3+ {[%emt 0:00:22]} 26. Bg3 {[%emt 0:00:09]} Rf5 {[%emt 0:00:09]} 0-1

[Event "25th Abu Dhabi Master 2018"]
[Site "Abu Dhabi"]
[Date "2018.08.08"]
[Round "2"]
[White "Sultan, Ibrahim"]
[Black "Patil, Pratik"]
[Result "0-1"]
[ECO "D86"]
[WhiteElo "2140"]
[BlackElo "1911"]
[Annotator "NA"]
[PlyCount "121"]
[EventDate "2018.08.05"]
[EventType "swiss"]
[EventCountry "UAE"]
[SourceTitle "playchess.com"]
[Source "ChessBase"]
[SourceQuality "1"]
[TimeControl "5400+30"]

1. d4 Nf6 2. c4 g6 3. Nc3 d5 4. cxd5 Nxd5 5. e4 Nxc3 6. bxc3 Bg7 7. Bc4 c5 8. Ne2 Nc6 9. Be3 O-O 10. O-O Bd7 11. Qd2 Rc8 12. Rac1 Qa5 13. Qb2 b6 14. Qb3 Nb8 15. Nf4 e6 16. Be2 cxd4 17. cxd4 e5 18. Rxc8 Bxc8 19. dxe5 Qxe5 20. f3 Nc6 21. Rd1 Rd8 22. Rxd8+ Nxd8 23. Qa4 Bf8 24. Nd5 Be6 25. Bd4 Qxd4+ 26. Qxd4 Bc5 27. Qxc5 bxc5 28. Bc4 Kf8 29. Kf2 Nc6 30. Ke3 Nb4 31. Kd2 Nxd5 32. exd5 Bd7 33. g4 h6 34. h4 g5 35. hxg5 hxg5 36. Ke3 Ke7 37. d6+ Kxd6 38. Bxf7 Ke5 39. Bc4 Bc6 40. Bb3 Bb5 41. Bf7 Bc6 42. Bc4 Ba4 43. Bf7 Bb5 44. Bg8 c4 45. Bf7 a5 46. Bg8 c3 47. Bf7 c2 48. Kd2 Bc6 49. Kxc2 Bxf3 50. Kb3 Bxg4 51. Ka4 Be6 52. Bh5 Bxa2 53. Kxa5 Kf4 54. Be8 g4 55. Bc6 Bb1 56. Kb4 g3 57. Bg2 Be4 58. Bf1 Ke3 59. Bh3 Kf2 60. Kc3 Bf5 61. Kd4 0-1